[Event "Late-Titled-Tuesday-Blitz-April-23-2024"]
[Site "Chess.com"]
[Date "2024.04.23"]
[Round "7"]
[White "N_I_Chess"]
[Black "Bilan_Danila"]
[Result "0-1"]
[WhiteElo "2386"]
[BlackElo "2570"]
[TimeControl "180+1"]
[EndTime "15:19:55 PDT"]
[Termination "Bilan_Danila won by checkmate"]

1. d4 {[%clk 0:02:55.4]} 1... d5 {[%clk 0:02:59.8]} 2. c4 {[%clk 0:02:54.1]}
2... c6 {[%clk 0:03:00.2]} 3. cxd5 {[%clk 0:02:53.6]} 3... cxd5 {[%clk
0:03:01.1]} 4. Bg5 {[%clk 0:02:54.3]} 4... Nf6 {[%clk 0:03:00.4]} 5. Bxf6 {[%clk
0:02:54]} 5... gxf6 {[%clk 0:03:01.3]} 6. Nc3 {[%clk 0:02:54.9]} 6... Nc6 {[%clk
0:03:01.6]} 7. e3 {[%clk 0:02:55]} 7... e6 {[%clk 0:02:55.6]} 8. Bd3 {[%clk
0:02:54.7]} 8... Bd6 {[%clk 0:02:54.5]} 9. Nge2 {[%clk 0:02:42.2]} 9... f5
{[%clk 0:02:51.3]} 10. Rc1 {[%clk 0:02:36.7]} 10... Bd7 {[%clk 0:02:49.6]} 11.
a3 {[%clk 0:02:35.5]} 11... Rc8 {[%clk 0:02:46.1]} 12. b4 {[%clk 0:02:28]} 12...
a5 {[%clk 0:02:25.1]} 13. b5 {[%clk 0:02:18.9]} 13... Ne7 {[%clk 0:02:23.9]} 14.
a4 {[%clk 0:02:16.3]} 14... Ng6 {[%clk 0:02:20]} 15. g3 {[%clk 0:02:13.7]} 15...
O-O {[%clk 0:02:04.3]} 16. h4 {[%clk 0:02:07.4]} 16... Qf6 {[%clk 0:01:57.2]}
17. Kf1 {[%clk 0:01:52.6]} 17... Kh8 {[%clk 0:01:53.8]} 18. Kg2 {[%clk 0:01:45]}
18... Rg8 {[%clk 0:01:52.3]} 19. Kf1 {[%clk 0:01:43.8]} 19... Rc7 {[%clk
0:01:31.2]} 20. f3 {[%clk 0:01:19.6]} 20... Ba3 {[%clk 0:01:17.7]} 21. Rc2
{[%clk 0:01:16.3]} 21... Rgc8 {[%clk 0:01:17.4]} 22. Kf2 {[%clk 0:01:10.7]}
22... Bb4 {[%clk 0:01:10.7]} 23. Qa1 {[%clk 0:01:06.2]} 23... b6 {[%clk
0:01:08]} 24. Qb2 {[%clk 0:01:05.8]} 24... Qe7 {[%clk 0:01:02.2]} 25. h5 {[%clk
0:00:55.9]} 25... Nf8 {[%clk 0:00:59]} 26. Rhc1 {[%clk 0:00:44.7]} 26... Ba3
{[%clk 0:00:58.8]} 27. Qb1 {[%clk 0:00:42.1]} 27... Bxc1 {[%clk 0:00:58.9]} 28.
Qxc1 {[%clk 0:00:43]} 28... h6 {[%clk 0:00:51.5]} 29. Na2 {[%clk 0:00:22.4]}
29... Rxc2 {[%clk 0:00:45.7]} 30. Bxc2 {[%clk 0:00:21.8]} 30... Nh7 {[%clk
0:00:32.9]} 31. Qb2 {[%clk 0:00:20.1]} 31... Nf6 {[%clk 0:00:32.8]} 32. Nf4
{[%clk 0:00:19.7]} 32... Kg7 {[%clk 0:00:30.5]} 33. Bd3 {[%clk 0:00:19.8]} 33...
Qd6 {[%clk 0:00:29.3]} 34. Ne2 {[%clk 0:00:19.1]} 34... Qc7 {[%clk 0:00:25.6]}
35. Nf4 {[%clk 0:00:18.5]} 35... Nh7 {[%clk 0:00:23.3]} 36. Ne2 {[%clk
0:00:12.6]} 36... Qd8 {[%clk 0:00:20.4]} 37. Nac3 {[%clk 0:00:11.3]} 37... Qg5
{[%clk 0:00:19.3]} 38. Nf4 {[%clk 0:00:11.7]} 38... Nf6 {[%clk 0:00:19.1]} 39.
Nce2 {[%clk 0:00:11.6]} 39... Nxh5 {[%clk 0:00:19.3]} 40. Kg2 {[%clk 0:00:10.8]}
40... Nxf4+ {[%clk 0:00:18.7]} 41. Nxf4 {[%clk 0:00:11.7]} 41... Qe7 {[%clk
0:00:19.2]} 42. Nh5+ {[%clk 0:00:11.7]} 42... Kg8 {[%clk 0:00:17.5]} 43. Nf4
{[%clk 0:00:12.4]} 43... Qb4 {[%clk 0:00:16.9]} 44. Qf2 {[%clk 0:00:11.2]} 44...
Qxa4 {[%clk 0:00:13.6]} 45. g4 {[%clk 0:00:10.8]} 45... fxg4 {[%clk 0:00:10.2]}
46. fxg4 {[%clk 0:00:08.8]} 46... Qd1 {[%clk 0:00:10.1]} 47. Kg3 {[%clk
0:00:05.6]} 47... Rc1 {[%clk 0:00:09.2]} 48. Nh3 {[%clk 0:00:04.4]} 48... e5
{[%clk 0:00:07.7]} 49. dxe5 {[%clk 0:00:04.3]} 49... Qxg4+ {[%clk 0:00:07.4]}
50. Kh2 {[%clk 0:00:03.3]} 50... Qxh3# {[%clk 0:00:08]} 0-1

[Event "Late-Titled-Tuesday-Blitz-April-23-2024"]
[Site "Chess.com"]
[Date "2024.04.23"]
[Round "7"]
[White "Bykov_Egor"]
[Black "prochn"]
[Result "1-0"]
[WhiteElo "2612"]
[BlackElo "2465"]
[TimeControl "180+1"]
[EndTime "15:19:58 PDT"]
[Termination "Bykov_Egor won on time"]

1. d4 {[%clk 0:03:00.9]} 1... d5 {[%clk 0:02:59.9]} 2. c4 {[%clk 0:02:57.4]}
2... c6 {[%clk 0:03:00.1]} 3. Nf3 {[%clk 0:02:56.9]} 3... Nf6 {[%clk 0:03:00]}
4. Nc3 {[%clk 0:02:56.1]} 4... dxc4 {[%clk 0:03:00.3]} 5. a4 {[%clk 0:02:56.1]}
5... Bf5 {[%clk 0:03:00.1]} 6. Ne5 {[%clk 0:02:56.7]} 6... Nbd7 {[%clk
0:03:00.4]} 7. Nxc4 {[%clk 0:02:53]} 7... Qc7 {[%clk 0:02:57.7]} 8. g3 {[%clk
0:02:52.5]} 8... e5 {[%clk 0:02:57.1]} 9. dxe5 {[%clk 0:02:51.3]} 9... Nxe5
{[%clk 0:02:56.9]} 10. Bf4 {[%clk 0:02:51.8]} 10... Nfd7 {[%clk 0:02:57.1]} 11.
Bg2 {[%clk 0:02:49.7]} 11... g5 {[%clk 0:02:54]} 12. Ne3 {[%clk 0:02:50.2]}
12... gxf4 {[%clk 0:02:51.7]} 13. Nxf5 {[%clk 0:02:50]} 13... O-O-O {[%clk
0:02:51.6]} 14. Qc2 {[%clk 0:02:29.2]} 14... fxg3 {[%clk 0:02:49.7]} 15. hxg3
{[%clk 0:02:28.7]} 15... Kb8 {[%clk 0:02:49.9]} 16. a5 {[%clk 0:02:26.2]} 16...
a6 {[%clk 0:02:26.9]} 17. Ne4 {[%clk 0:01:54.5]} 17... Bb4+ {[%clk 0:02:24.1]}
18. Kf1 {[%clk 0:01:54.3]} 18... Ng4 {[%clk 0:02:07.6]} 19. Qb3 {[%clk
0:01:39.2]} 19... Bxa5 {[%clk 0:01:53.2]} 20. Rh4 {[%clk 0:01:19.7]} 20... h5
{[%clk 0:01:28.2]} 21. Ned6 {[%clk 0:01:11.4]} 21... Nde5 {[%clk 0:01:22.4]} 22.
Rxa5 {[%clk 0:00:57.8]} 22... Rxd6 {[%clk 0:01:14.4]} 23. Nxd6 {[%clk
0:00:57.3]} 23... Qxd6 {[%clk 0:01:09.4]} 24. Ra1 {[%clk 0:00:32]} 24... Qc5
{[%clk 0:01:05]} 25. e3 {[%clk 0:00:32.2]} 25... Rd8 {[%clk 0:00:50.5]} 26. Kg1
{[%clk 0:00:23.4]} 26... Rd2 {[%clk 0:00:49]} 27. Rf1 {[%clk 0:00:15.3]} 27...
Nd3 {[%clk 0:00:45.1]} 28. Qc3 {[%clk 0:00:10]} 28... Qxc3 {[%clk 0:00:33.7]}
29. bxc3 {[%clk 0:00:10.9]} 29... Ndxf2 {[%clk 0:00:33.1]} 30. Rxh5 {[%clk
0:00:10.1]} 30... Nd3 {[%clk 0:00:23]} 31. Rxf7 {[%clk 0:00:05.1]} 31... Nxe3
{[%clk 0:00:21.6]} 32. Bf1 {[%clk 0:00:05.5]} 32... Rd1 {[%clk 0:00:20.2]} 33.
Rhh7 {[%clk 0:00:05.3]} 33... Ka8 {[%clk 0:00:19.5]} 34. g4 {[%clk 0:00:04]}
34... Ne5 {[%clk 0:00:18.4]} 35. Rf8+ {[%clk 0:00:03.6]} 35... Ka7 {[%clk
0:00:18.4]} 36. g5 {[%clk 0:00:04.5]} 36... Nxf1 {[%clk 0:00:08.3]} 37. Rxf1
{[%clk 0:00:04.4]} 37... Rd3 {[%clk 0:00:08.8]} 38. Rh2 {[%clk 0:00:03.3]} 38...
Nf3+ {[%clk 0:00:07.9]} 39. Rxf3 {[%clk 0:00:03.6]} 39... Rxf3 {[%clk
0:00:05.2]} 40. g6 {[%clk 0:00:04.2]} 40... Rf8 {[%clk 0:00:04.9]} 41. Rg2
{[%clk 0:00:03.2]} 41... Rg8 {[%clk 0:00:04.9]} 42. Kh2 {[%clk 0:00:03.9]} 42...
a5 {[%clk 0:00:05.3]} 43. Kh3 {[%clk 0:00:04.5]} 43... a4 {[%clk 0:00:05.8]} 44.
Kh4 {[%clk 0:00:05.3]} 44... Ka6 {[%clk 0:00:05.8]} 45. Kg5 {[%clk 0:00:05.8]}
45... b5 {[%clk 0:00:05.5]} 46. Kf6 {[%clk 0:00:06.3]} 46... c5 {[%clk 0:00:05]}
47. Kf7 {[%clk 0:00:06.8]} 47... Rxg6 {[%clk 0:00:05]} 48. Rxg6+ {[%clk
0:00:06.9]} 48... Ka5 {[%clk 0:00:05.6]} 49. Ke6 {[%clk 0:00:07.8]} 49... a3
{[%clk 0:00:05.4]} 50. Kd5 {[%clk 0:00:08.1]} 50... c4 {[%clk 0:00:03.2]} 51.
Kc5 {[%clk 0:00:07.9]} 51... Ka4 {[%clk 0:00:01.6]} 52. Rg2 {[%clk 0:00:07.9]}
1-0

[Event "Late-Titled-Tuesday-Blitz-April-23-2024"]
[Site "Chess.com"]
[Date "2024.04.23"]
[Round "7"]
[White "MeisterJabo"]
[Black "finec2"]
[Result "1-0"]
[WhiteElo "2491"]
[BlackElo "2232"]
[TimeControl "180+1"]
[EndTime "15:19:58 PDT"]
[Termination "MeisterJabo won on time"]

1. c4 {[%clk 0:02:59.9]} 1... Nf6 {[%clk 0:02:59.4]} 2. g3 {[%clk 0:02:59.8]}
2... g6 {[%clk 0:02:59.7]} 3. Bg2 {[%clk 0:03:00.4]} 3... Bg7 {[%clk 0:03:00.4]}
4. Nc3 {[%clk 0:03:01.3]} 4... O-O {[%clk 0:03:00.4]} 5. b4 {[%clk 0:03:00.8]}
5... d6 {[%clk 0:03:01.3]} 6. Nf3 {[%clk 0:03:00.3]} 6... e5 {[%clk 0:02:59.3]}
7. O-O {[%clk 0:02:56.9]} 7... h6 {[%clk 0:02:58.6]} 8. Rb1 {[%clk 0:02:55.7]}
8... Be6 {[%clk 0:02:57.4]} 9. d3 {[%clk 0:02:54.9]} 9... c6 {[%clk 0:02:57.1]}
10. b5 {[%clk 0:02:53.5]} 10... Qd7 {[%clk 0:02:57]} 11. Ba3 {[%clk 0:02:51.1]}
11... c5 {[%clk 0:02:40]} 12. e4 {[%clk 0:02:37.9]} 12... Qd8 {[%clk 0:02:29.3]}
13. Bc1 {[%clk 0:02:28.9]} 13... Kh7 {[%clk 0:02:27.7]} 14. h3 {[%clk
0:02:27.1]} 14... Nbd7 {[%clk 0:02:24.3]} 15. Kh2 {[%clk 0:02:25.9]} 15... Nh5
{[%clk 0:02:21.2]} 16. Nh4 {[%clk 0:02:22.5]} 16... Bf6 {[%clk 0:02:05.6]} 17.
Nf3 {[%clk 0:02:11.1]} 17... Be7 {[%clk 0:02:00.8]} 18. Nd5 {[%clk 0:02:09.6]}
18... Bxd5 {[%clk 0:02:00]} 19. cxd5 {[%clk 0:02:04.2]} 19... Ng7 {[%clk
0:01:54.6]} 20. Qd2 {[%clk 0:01:59.1]} 20... g5 {[%clk 0:01:44.7]} 21. g4 {[%clk
0:01:56.9]} 21... Re8 {[%clk 0:01:35.1]} 22. h4 {[%clk 0:01:56.4]} 22... f6
{[%clk 0:01:31.1]} 23. Kg3 {[%clk 0:01:53.3]} 23... Kg6 {[%clk 0:01:26.2]} 24.
Rh1 {[%clk 0:01:52.2]} 24... Rh8 {[%clk 0:01:25.3]} 25. a4 {[%clk 0:01:44.9]}
25... Kf7 {[%clk 0:01:22.9]} 26. h5 {[%clk 0:01:43.1]} 26... a5 {[%clk
0:01:05.7]} 27. bxa6 {[%clk 0:01:40.3]} 27... bxa6 {[%clk 0:01:05.6]} 28. Qc2
{[%clk 0:01:36.9]} 28... Qa5 {[%clk 0:00:58.9]} 29. Bd2 {[%clk 0:01:35.5]} 29...
Qd8 {[%clk 0:00:54.3]} 30. Rb7 {[%clk 0:01:32]} 30... Rb8 {[%clk 0:00:50.6]} 31.
Rhb1 {[%clk 0:01:32.5]} 31... Rxb7 {[%clk 0:00:50.2]} 32. Rxb7 {[%clk
0:01:33.4]} 32... Qc8 {[%clk 0:00:45.5]} 33. Qb1 {[%clk 0:01:29.2]} 33... Rd8
{[%clk 0:00:39.9]} 34. Ba5 {[%clk 0:01:27.1]} 34... Re8 {[%clk 0:00:37.4]} 35.
Bc7 {[%clk 0:01:18.8]} 35... Qa8 {[%clk 0:00:34]} 36. Nd2 {[%clk 0:01:16.4]}
36... Rc8 {[%clk 0:00:20.6]} 37. Nc4 {[%clk 0:01:15.9]} 37... Ne8 {[%clk
0:00:20.2]} 38. Ba5 {[%clk 0:01:10.8]} 38... Rb8 {[%clk 0:00:11.9]} 39. Rxb8
{[%clk 0:01:06.4]} 39... Qxb8 {[%clk 0:00:12.1]} 40. Qd1 {[%clk 0:01:07.3]}
40... Qb7 {[%clk 0:00:09]} 41. Qf3 {[%clk 0:01:06.5]} 41... Ng7 {[%clk
0:00:08.7]} 42. Qd1 {[%clk 0:01:04.7]} 42... Ke8 {[%clk 0:00:08.2]} 43. Bf3
{[%clk 0:01:01.4]} 43... Kf7 {[%clk 0:00:08.2]} 44. Qc2 {[%clk 0:01:01.6]} 44...
Ke8 {[%clk 0:00:07.8]} 45. Bd1 {[%clk 0:01:02.2]} 45... Kf7 {[%clk 0:00:07.9]}
46. Qd2 {[%clk 0:01:02]} 46... Ke8 {[%clk 0:00:07.6]} 47. Bc2 {[%clk 0:01:02.6]}
47... Kf7 {[%clk 0:00:07.8]} 48. Qc3 {[%clk 0:00:57.2]} 48... Ne8 {[%clk
0:00:07.5]} 49. Ne3 {[%clk 0:00:56.9]} 49... Ng7 {[%clk 0:00:07.3]} 50. Bb3
{[%clk 0:00:48.2]} 50... Ke8 {[%clk 0:00:06.4]} 51. Bc4 {[%clk 0:00:48.5]} 51...
Kf7 {[%clk 0:00:06.4]} 52. Qb3 {[%clk 0:00:29.8]} 52... Qxb3 {[%clk 0:00:05.8]}
53. Bxb3 {[%clk 0:00:30.7]} 53... Ke8 {[%clk 0:00:05.6]} 54. Bc4 {[%clk
0:00:30.9]} 54... Bd8 {[%clk 0:00:02]} 55. Bxd8 {[%clk 0:00:30.7]} 55... Kxd8
{[%clk 0:00:02.9]} 56. Bxa6 {[%clk 0:00:31.2]} 56... Kc7 {[%clk 0:00:03.6]} 57.
Bb5 {[%clk 0:00:26.2]} 57... Nb6 {[%clk 0:00:03.7]} 58. a5 {[%clk 0:00:24.9]}
58... Nc8 {[%clk 0:00:03.8]} 59. Nc4 {[%clk 0:00:22.9]} 59... Na7 {[%clk
0:00:03.1]} 60. Ba4 {[%clk 0:00:21.6]} 1-0

[Event "Late-Titled-Tuesday-Blitz-April-23-2024"]
[Site "Chess.com"]
[Date "2024.04.23"]
[Round "7"]
[White "ATM622"]
[Black "LeninGuerra"]
[Result "1/2-1/2"]
[WhiteElo "2518"]
[BlackElo "2669"]
[TimeControl "180+1"]
[EndTime "15:20:00 PDT"]
[Termination "Game drawn - insufficient material"]

1. d4 {[%clk 0:03:00.9]} 1... Nf6 {[%clk 0:02:59.6]} 2. c4 {[%clk 0:03:00.9]}
2... c5 {[%clk 0:02:59.5]} 3. d5 {[%clk 0:03:01]} 3... b5 {[%clk 0:02:59.6]} 4.
cxb5 {[%clk 0:03:01.9]} 4... a6 {[%clk 0:02:58.6]} 5. e3 {[%clk 0:03:01.8]} 5...
d6 {[%clk 0:02:58.1]} 6. Nc3 {[%clk 0:03:01.3]} 6... g6 {[%clk 0:02:58]} 7. Nf3
{[%clk 0:03:01.6]} 7... Bg7 {[%clk 0:02:58.3]} 8. a4 {[%clk 0:02:58.2]} 8... O-O
{[%clk 0:02:58.6]} 9. Be2 {[%clk 0:02:58.5]} 9... axb5 {[%clk 0:02:59.2]} 10.
Bxb5 {[%clk 0:02:58.7]} 10... Ba6 {[%clk 0:02:59.8]} 11. O-O {[%clk 0:02:57.4]}
11... Bxb5 {[%clk 0:02:59.9]} 12. Nxb5 {[%clk 0:02:57.6]} 12... Nbd7 {[%clk
0:03:00.2]} 13. Re1 {[%clk 0:02:50.3]} 13... Nb6 {[%clk 0:03:00.2]} 14. e4
{[%clk 0:02:50.6]} 14... Qd7 {[%clk 0:03:00.2]} 15. e5 {[%clk 0:02:37.4]} 15...
dxe5 {[%clk 0:02:59.2]} 16. Nxe5 {[%clk 0:02:36.5]} 16... Qxd5 {[%clk
0:02:58.7]} 17. Qxd5 {[%clk 0:02:33.3]} 17... Nfxd5 {[%clk 0:02:58.4]} 18. a5
{[%clk 0:02:21.9]} 18... Rfb8 {[%clk 0:02:44.5]} 19. Nc6 {[%clk 0:02:15.9]}
19... Rb7 {[%clk 0:01:54.2]} 20. a6 {[%clk 0:01:55.2]} 20... Rd7 {[%clk
0:01:54.1]} 21. Bd2 {[%clk 0:01:48.2]} 21... Kf8 {[%clk 0:01:39.3]} 22. a7
{[%clk 0:01:43.2]} 22... Rc8 {[%clk 0:01:34.2]} 23. Ra6 {[%clk 0:01:39.2]} 23...
Bxb2 {[%clk 0:01:22.2]} 24. Rb1 {[%clk 0:01:35.8]} 24... Bf6 {[%clk 0:01:17.4]}
25. Na3 {[%clk 0:01:07.5]} 25... Kg7 {[%clk 0:01:09.2]} 26. Ba5 {[%clk
0:00:59.4]} 26... Na8 {[%clk 0:00:41.1]} 27. Nb8 {[%clk 0:00:47.1]} 27... Rd6
{[%clk 0:00:28.4]} 28. Rxd6 {[%clk 0:00:38]} 28... exd6 {[%clk 0:00:29.3]} 29.
Nd7 {[%clk 0:00:38.2]} 29... Nb4 {[%clk 0:00:25.3]} 30. g3 {[%clk 0:00:29.7]}
30... Bd4 {[%clk 0:00:22.1]} 31. Nb5 {[%clk 0:00:21.7]} 31... Be5 {[%clk
0:00:12.3]} 32. Bxb4 {[%clk 0:00:11.5]} 32... cxb4 {[%clk 0:00:12.2]} 33. Rxb4
{[%clk 0:00:11.1]} 33... Rc6 {[%clk 0:00:11.8]} 34. Nxe5 {[%clk 0:00:07.4]}
34... dxe5 {[%clk 0:00:11.9]} 35. Ra4 {[%clk 0:00:03.5]} 35... h5 {[%clk
0:00:12]} 36. Kg2 {[%clk 0:00:03.4]} 36... g5 {[%clk 0:00:11.7]} 37. h4 {[%clk
0:00:03.6]} 37... f6 {[%clk 0:00:11.4]} 38. hxg5 {[%clk 0:00:03.8]} 38... fxg5
{[%clk 0:00:12.3]} 39. Kf3 {[%clk 0:00:04.3]} 39... Kg6 {[%clk 0:00:12.4]} 40.
Ke4 {[%clk 0:00:04.6]} 40... h4 {[%clk 0:00:11.5]} 41. Kd5 {[%clk 0:00:04.9]}
41... Rc1 {[%clk 0:00:10.9]} 42. gxh4 {[%clk 0:00:03.3]} 42... gxh4 {[%clk
0:00:09.9]} 43. Kxe5 {[%clk 0:00:03.3]} 43... Rc5+ {[%clk 0:00:09.6]} 44. Kd6
{[%clk 0:00:03.2]} 44... Rxb5 {[%clk 0:00:10]} 45. Rxh4 {[%clk 0:00:03.4]} 45...
Ra5 {[%clk 0:00:10.5]} 46. Kc6 {[%clk 0:00:02.6]} 46... Rxa7 {[%clk 0:00:10.6]}
47. Rb4 {[%clk 0:00:02.7]} 47... Kf5 {[%clk 0:00:10]} 48. Rb8 {[%clk 0:00:02.4]}
48... Ra1 {[%clk 0:00:09.4]} 49. Rf8+ {[%clk 0:00:02.3]} 49... Ke4 {[%clk
0:00:09.4]} 50. Kb7 {[%clk 0:00:02.6]} 50... Ra2 {[%clk 0:00:05.5]} 51. Rxa8
{[%clk 0:00:02.2]} 51... Rb2+ {[%clk 0:00:05.1]} 52. Kc7 {[%clk 0:00:02.3]}
52... Kf3 {[%clk 0:00:05.6]} 53. Rf8+ {[%clk 0:00:02.4]} 53... Kg4 {[%clk
0:00:05]} 54. f4 {[%clk 0:00:02.5]} 54... Rf2 {[%clk 0:00:04.7]} 55. Rg8+ {[%clk
0:00:01.8]} 55... Kxf4 {[%clk 0:00:02.8]} 56. Rf8+ {[%clk 0:00:02.2]} 56... Ke3
{[%clk 0:00:03.4]} 57. Rxf2 {[%clk 0:00:03.1]} 57... Kxf2 {[%clk 0:00:03.6]}
1/2-1/2

[Event "Late-Titled-Tuesday-Blitz-April-23-2024"]
[Site "Chess.com"]
[Date "2024.04.23"]
[Round "7"]
[White "titomagno_64"]
[Black "Slovak_fighter2000"]
[Result "0-1"]
[WhiteElo "2318"]
[BlackElo "2548"]
[TimeControl "180+1"]
[EndTime "15:20:03 PDT"]
[Termination "Slovak_fighter2000 won on time"]

1. d4 {[%clk 0:03:00.9]} 1... Nf6 {[%clk 0:02:55.7]} 2. c4 {[%clk 0:03:01.2]}
2... g6 {[%clk 0:02:52.4]} 3. Nc3 {[%clk 0:03:00.2]} 3... Bg7 {[%clk 0:02:52.7]}
4. e4 {[%clk 0:03:00.4]} 4... d6 {[%clk 0:02:53]} 5. Nf3 {[%clk 0:03:00.9]} 5...
O-O {[%clk 0:02:52.9]} 6. Be2 {[%clk 0:03:01.3]} 6... Bg4 {[%clk 0:02:52.5]} 7.
Be3 {[%clk 0:03:00.7]} 7... Nfd7 {[%clk 0:02:52.4]} 8. O-O {[%clk 0:02:57.4]}
8... Bxf3 {[%clk 0:02:48.9]} 9. Bxf3 {[%clk 0:02:57.1]} 9... Nc6 {[%clk
0:02:48.4]} 10. Be2 {[%clk 0:02:53.5]} 10... e5 {[%clk 0:02:48.2]} 11. d5 {[%clk
0:02:53.2]} 11... Nd4 {[%clk 0:02:48.5]} 12. Nb5 {[%clk 0:02:24.4]} 12... Nxe2+
{[%clk 0:02:28.7]} 13. Qxe2 {[%clk 0:02:25.3]} 13... a6 {[%clk 0:02:24.3]} 14.
Nc3 {[%clk 0:02:25.8]} 14... f5 {[%clk 0:02:19.6]} 15. f3 {[%clk 0:02:26.3]}
15... f4 {[%clk 0:02:09.6]} 16. Bf2 {[%clk 0:02:25.9]} 16... g5 {[%clk
0:02:07.9]} 17. b4 {[%clk 0:02:26.2]} 17... h5 {[%clk 0:02:06.3]} 18. c5 {[%clk
0:02:25.4]} 18... Nf6 {[%clk 0:02:06]} 19. b5 {[%clk 0:02:18.4]} 19... g4 {[%clk
0:01:56]} 20. b6 {[%clk 0:01:55.3]} 20... cxb6 {[%clk 0:01:48.6]} 21. cxd6
{[%clk 0:01:50.3]} 21... Qxd6 {[%clk 0:01:45.7]} 22. Na4 {[%clk 0:01:50.8]}
22... gxf3 {[%clk 0:01:22.1]} 23. gxf3 {[%clk 0:01:51.7]} 23... Nd7 {[%clk
0:01:21.5]} 24. Rac1 {[%clk 0:01:49.9]} 24... Rac8 {[%clk 0:01:13.5]} 25. Rc2
{[%clk 0:01:33.5]} 25... Rxc2 {[%clk 0:01:10.9]} 26. Qxc2 {[%clk 0:01:34.4]}
26... b5 {[%clk 0:01:04.1]} 27. Nb2 {[%clk 0:01:32.7]} 27... Bf6 {[%clk
0:00:58.5]} 28. Rc1 {[%clk 0:01:21.4]} 28... Bd8 {[%clk 0:00:49.5]} 29. Nd3
{[%clk 0:01:11.7]} 29... Kh7 {[%clk 0:00:43.9]} 30. Kh1 {[%clk 0:01:06.3]} 30...
Rg8 {[%clk 0:00:42.5]} 31. Qc8 {[%clk 0:00:50.9]} 31... Bb6 {[%clk 0:00:32.7]}
32. Qxb7 {[%clk 0:00:41.6]} 32... Bxf2 {[%clk 0:00:30.2]} 33. Nxf2 {[%clk
0:00:42.2]} 33... Rg7 {[%clk 0:00:25]} 34. Rg1 {[%clk 0:00:21.1]} 34... Rxg1+
{[%clk 0:00:24.4]} 35. Kxg1 {[%clk 0:00:22]} 35... Kg6 {[%clk 0:00:23.8]} 36.
Nd3 {[%clk 0:00:19.3]} 36... Nc5 {[%clk 0:00:16.1]} 37. Qc6 {[%clk 0:00:14.5]}
37... Qxc6 {[%clk 0:00:13.5]} 38. dxc6 {[%clk 0:00:15.4]} 38... Ne6 {[%clk
0:00:09.9]} 39. Nxe5+ {[%clk 0:00:12.4]} 39... Kf6 {[%clk 0:00:10.2]} 40. Nd7+
{[%clk 0:00:06.9]} 40... Ke7 {[%clk 0:00:10.1]} 41. Ne5 {[%clk 0:00:05.6]} 41...
Kd6 {[%clk 0:00:09.6]} 42. Nd3 {[%clk 0:00:03.3]} 42... Kxc6 {[%clk 0:00:09]}
43. Kf2 {[%clk 0:00:03.1]} 43... a5 {[%clk 0:00:08.7]} 44. Ke1 {[%clk
0:00:03.5]} 44... b4 {[%clk 0:00:08.9]} 45. Kd2 {[%clk 0:00:03.8]} 45... Kb5
{[%clk 0:00:08.4]} 46. Kc2 {[%clk 0:00:04.2]} 46... Kc4 {[%clk 0:00:07.1]} 47.
Nb2+ {[%clk 0:00:02.8]} 47... Kd4 {[%clk 0:00:07.1]} 48. Nd3 {[%clk 0:00:02.7]}
48... Ke3 {[%clk 0:00:05.8]} 49. e5 {[%clk 0:00:02.2]} 49... Kxf3 {[%clk
0:00:05.2]} 50. Nb2 {[%clk 0:00:02.2]} 50... Ke4 {[%clk 0:00:05.5]} 51. Kd2
{[%clk 0:00:02]} 51... f3 {[%clk 0:00:04.1]} 52. Ke1 {[%clk 0:00:01.9]} 52...
Ke3 {[%clk 0:00:03.9]} 53. Nc4+ {[%clk 0:00:01.7]} 53... Kd4 {[%clk 0:00:04.4]}
54. Nxa5 {[%clk 0:00:01.7]} 54... Kxe5 {[%clk 0:00:05.3]} 55. Nb3 {[%clk
0:00:02.3]} 55... Ke4 {[%clk 0:00:04.9]} 56. Kf2 {[%clk 0:00:03.2]} 56... Ng5
{[%clk 0:00:03.5]} 57. Nd2+ {[%clk 0:00:03.8]} 57... Kf4 {[%clk 0:00:03.4]} 58.
h4 {[%clk 0:00:04.7]} 58... Ne4+ {[%clk 0:00:03.6]} 59. Nxe4 {[%clk 0:00:04.5]}
59... Kxe4 {[%clk 0:00:04.5]} 60. Kg3 {[%clk 0:00:04.1]} 60... Ke3 {[%clk
0:00:04.8]} 0-1